[Event "1.FrauenBL 2018-19"]
[Site "Berlin"]
[Date "2019.03.03"]
[Round "11.12"]
[White "Spiel, Marianne"]
[Black "Zahn, Alina"]
[Result "1/2-1/2"]
[ECO "C67"]
[WhiteElo "1901"]
[BlackElo "2117"]
[Annotator "NA"]
[PlyCount "64"]
[EventDate "2018.10.27"]
[EventType "team-tourn"]
[EventCountry "GER"]
[SourceTitle "playchess.com"]
[Source "ChessBase"]
[SourceQuality "1"]
[WhiteTeam "FC Bayern Muenchen"]
[BlackTeam "Hamburger SK"]
[TimeControl "40/5400+30:1800+30"]

1. e4 {[%emt 0:00:03]} e5 {[%emt 0:00:08]} 2. Nf3 {[%emt 0:00:11]} Nc6 {[%emt 0:00:06]} 3. Bb5 {[%emt 0:00:01]} Nf6 {[%emt 0:00:13]} 4. O-O {[%emt 0:00:55]} Nxe4 {[%emt 0:00:16]} 5. Qe2 {[%emt 0:17:29]} Nd6 {[%emt 0:17:26]} 6. Nxe5 {[%emt 0:00:00]} Be7 {[%emt 0:00:00]} 7. Ba4 {[%emt 0:27:30]} Nxe5 {[%emt 0:00:00]} 8. Qxe5 {[%emt 0:00:19]} O-O {[%emt 0:00:00]} 9. d4 {[%emt 0:02:46]} Re8 {[%emt 0:00:00]} 10. c3 {[%emt 0:00:00]} Bf6 {[%emt 0:01:08]} 11. Qh5 {[%emt 0:07:54]} g6 {[%emt 0:01:56]} 12. Qf3 {[%emt 0:00:00]} Nf5 {[%emt 0:02:58]} 13. Bf4 {[%emt 0:03:45]} c6 {[%emt 0:02:06]} 14. d5 {[%emt 0:00:00]} Nh4 {[%emt 0:20:10]} 15. Qd3 {[%emt 0:04:38]} b5 {[%emt 0:18:34]} 16. Bb3 {[%emt 0:00:00]} Bb7 {[%emt 0:00:56]} 17. Nd2 {[%emt 0:00:00]} a5 {[%emt 0:00:00]} 18. a3 {[%emt 0:03:41]} a4 {[%emt 0:00:00]} 19. Ba2 {[%emt 0:01:06]} Ba6 {[%emt 0:03:51]} 20. Ne4 {[%emt 0:00:00]} b4 {[%emt 0:06:43]} 21. Bc4 {[%emt 0:09:13]} cxd5 {[%emt 0:01:56]} 22. Qxd5 {[%emt 0:01:25]} Bxc4 {[%emt 0:00:20]} 23. Qxc4 {[%emt 0:00:06]} d5 {[%emt 0:01:45]} 24. Nxf6+ {[%emt 0:00:47]} Qxf6 {[%emt 0:00:00]} 25. Qxb4 {[%emt 0:02:05]} Re4 {[%emt 0:05:33]} 26. Qb7 {[%emt 0:00:29]} Qxf4 {[%emt 0:06:54]} 27. Qxa8+ {[%emt 0:00:54]} Kg7 {[%emt 0:00:08]} 28. Qxd5 {[%emt 0:04:28]} Qg4 29. g3 {[%emt 0:06:37]} Nf3+ {[%emt 0:00:00]} 30. Kg2 {[%emt 0:00:00]} Nh4+ {[%emt 0:00:00]} 31. Kg1 {[%emt 0:00:00]} Nf3+ {[%emt 0:10:29]} 32. Kg2 {[%emt 0:00:00]} Nh4+ {[%emt 0:01:00]} 1/2-1/2